Workbook

Sheet Agent Business Plan
C5: Agent Business Plannner
C6: Fill in the blue boxes only. All other boxes will be calculated automatically.
C7: How much do you want to make? | H7: Current Broker | J7: Fathom
C8: 1) | D8: My income goal for the next 12 months (dream big) | G8: BEGIN HERE → | H8: 100000 | J8: =H8 -> 100000
C10: Your average home sale information
C11: 1) | D11: Average Sale Price | H11: 220000 | J11: =H11 -> 220000
C12: 2) | D12: Average Commission earned per sale | H12: 0.03 | J12: =H12 -> 0.03
C13: 3) | D13: Average Gross Commission per sale (automatically calculated) | H13: =SUM(H11*H12) -> 6600 | J13: =SUM(J11*J12) -> 6600
C14: 4) | D14: Transaction Fee per sale | E14: 0.06 | H14: 100 | J14: Hover for Info
C15: 5) | D15: Additional Costs per sale | H15: 50 | J15: 0
C16: 6) | D16: Agent Split % (How much you keep) | H16: 0.7 | J16: 1
C17: 7) | D17: Agent Commission per sale (automatically calculated) | H17: =SUM(H13*H16)-(H14+H15) -> 4470 | J17: =SUM(J13*J16-J15)-Calculations!B14 -> 6223.008
H19: Current Broker | J19: Fathom
C20: Number of closed sides required to reach your goal: | H20: =SUM(H8/H17) -> 22.37136465 | J20: =SUM(J8/J17) -> 16.06939924
B22: PLANNING YOUR YEAR
C23: Note: The numbers below represent planning your year based on Fathom Realty's comission structure as seen above in the right column. If you would like to plan your year using your current broker numbers, use the buttons at the bottom of this document to reavel those numbers.
C24: Listings Vs. Sales
C25: Top agents' income is 75% listings sold, 25% sales. Below in the Yellow Boxes you will see the optimum numbers based on that metric
D27: Optimum Listings Sold (75%) = | E27: =SUM(J20*75%) -> 12.05204943 | F27: Optimum Sales Sold (25%) = | H27: =SUM(J20*0.25) -> 4.017349809
C29: Your numbers
C30: 1) | D30: What % of your closings are listings? | E30: 0.6 | F30: % Sales (auto calculated) | H30: =SUM(100%-E30) -> 0.4
H32: Optimum Numbers (for comparison)
C33: 3) | D33: What percentage of your listings actually close? | J33: 0.9
D34: (use your percentage, or if new, use your office percentage)
C35: 4) | D35: What percentage of your sales contracts actually close? | J35: 0.9
D36: (use your percentage, or if new, use your office percentage)
C37: 5) | D37: How many appointments do you need to obtain 1 listing? | H37: 3 | J37: 4
C38: 6) | D38: How many contacts do you need to obtain 1 appointment? | H38: 10 | J38: 20
C40: With this as your basis:
C42: 1) | D42: Number of listing sides required to close to reach your goal | H42: =SUM(J20*75%) -> 12.05204943 | J42: =SUM(J20*$E$30) -> 9.641639542
C43: 2) | D43: Number of sale sides required to close to reach your goal | H43: =SUM(J20*25%) -> 4.017349809 | J43: =SUM(J20*$H$30) -> 6.427759694
B46: Here's what you need to do in the next 12 months to achieve your income goal with Fathom
C48: I. | D48: Number of sales contracts needed to open in next 12 months | H48: =SUM(H43/J35) -> 4.46372201 | J48: =SUM(J43/$J$35) -> 7.141955216
D49: (calculated by dividing #2 above by #4)
C50: II. | D50: Number of new listings I will obtain in next 12 months | H50: =SUM(H42/J33) -> 13.39116603 | J50: =SUM(J42/$J$33) -> 10.71293282
D51: (calculated by dividing #1 above by #3)
C52: III. | D52: Number of listing appointments needed annually | H52: =SUM(H50*H37) -> 40.17349809 | J52: =SUM(J50*$J$37) -> 42.8517313
D53: (calculated by multipyling the above row by #5 above)
C54: IV. | D54: Number of listing appointments needed monthly | H54: =SUM(H52/12) -> 3.347791507 | J54: =SUM(J52/12) -> 3.570977608
D55: (calculated by dividing the above row by 12 months)
C56: V. | D56: Number of listing appointments needed per week | H56: =SUM(H54/4) -> 0.8369478769 | J56: =SUM(J54/4) -> 0.892744402
D57: (calculated by dividing the above row by 4 weeks)
C58: VI. | D58: Number of contacts needed per week to hit my listing goal | H58: =SUM(H56*H38) -> 8.369478769 | J58: =SUM(J56*$J$38) -> 17.85488804
D59: (calculated by multiplying the above row by #6 above)
C60: VII. | D60: Number of contacts needed per day to hit my listing goal | H60: =SUM(H58/5) -> 1.673895754 | J60: =SUM(J58/5) -> 3.570977608
D61: (calculated by dividing line V by 5 days)
B65: Your Current Broker
C66: With this as your basis: | H66: Optimum Numbers (for comparison) | K66: Compared to Fathom
C68: 1) | D68: Number of listing sides required to close to reach your goal | H68: =SUM(H20*75%) -> 16.77852349 | J68: =SUM(H20*E30) -> 13.42281879 | K68: =J68-J42 -> 3.78117925 | L68: more
C69: 2) | D69: Number of sale sides required to close to reach your goal | H69: =SUM(H20*25%) -> 5.592841163 | J69: =SUM(H20*H30) -> 8.948545861 | K69: =J69-J43 -> 2.520786167 | L69: more
B71: Here's what you need to do in the next 12 months to achieve your income goal with your current broker
C73: I. | D73: Number of sales contracts needed to open in next 12 months | H73: =SUM(H69/J35) -> 6.214267959 | J73: =SUM(J69/$J$35) -> 9.942828735 | K73: =J73-J48 -> 2.800873519 | L73: more
D74: (calculated by dividing #2 above by #4)
C75: II. | D75: Number of new listings I will obtain in next 12 months | H75: =SUM(H68/J33) -> 18.64280388 | J75: =SUM(J68/$J$33) -> 14.9142431 | K75: =J75-J50 -> 4.201310278 | L75: more
D76: (calculated by dividing #1 above by #3)
C77: III. | D77: Number of listing appointments needed annually | H77: =SUM(H75*H37) -> 55.92841163 | J77: =SUM(J75*$J$37) -> 59.65697241 | K77: =J77-J52 -> 16.80524111 | L77: more
D78: (calculated by multipyling the above row by #5 above)
C79: IV. | D79: Number of listing appointments needed monthly | H79: =SUM(H77/12) -> 4.660700969 | J79: =SUM(J77/12) -> 4.971414367 | K79: =J79-J54 -> 1.400436759 | L79: more
D80: (calculated by dividing the above row by 12 months)
C81: V. | D81: Number of listing appointments needed per week | H81: =SUM(H79/4) -> 1.165175242 | J81: =SUM(J79/4) -> 1.242853592 | K81: =J81-J56 -> 0.3501091899 | L81: more
D82: (calculated by dividing the above row by 4 weeks)
C83: VI. | D83: Number of contacts needed per week to hit my listing goal | H83: =SUM(H81*H38) -> 11.65175242 | J83: =SUM(J81*$J$38) -> 24.85707184 | K83: =J83-J58 -> 7.002183797 | L83: more
D84: (calculated by multiplying the above row by #6 above)
C85: VII. | D85: Number of contacts needed per day to hit my listing goal | H85: =SUM(H83/5) -> 2.330350485 | J85: =SUM(J83/5) -> 4.971414367 | K85: =J85-J60 -> 1.400436759 | L85: more
D86: (calculated by dividing line V by 5 days)
B90: Note: Always round up.
B92: To learn about how Fathom helps their agents achieve their goals, visit www.FathomCareers.com.

Sheet Calculations
F1: Quantity | G1: Unit Price
A5: Sales | B5: =$B$29 -> 15.15151515 | E5: 1-12 Sales | F5: 1 | G5: 450
E6: 13+ Sales | F6: 13 | G6: 99
F7: 9999999 | G7: 99
F10: 9999999
A12: Total Split to Fathom | B12: =SUM(IF(IF(B$5>=F6:F10,F6:F10-F5:F9,$B$5-F5:F9+1)>0, IF(B$5>=F6:F10,F6:F10-F5:F9,$B$5-F5:F9+1),0)*G5:G9) -> 5712
A14: Average Split per sale | B14: =B12/B5 -> 376.992
A19: My income goal for the next 12 months | B19: ='Agent Business Plan'!$J$8 -> 100000
A20: Average Sales Price | B20: ='Agent Business Plan'!$J$11 -> 220000
A21: Average Commission earned per side | B21: ='Agent Business Plan'!$J$12 -> 0.03
A22: Average Gross Commission per side | B22: =B20*B21 -> 6600
A23: Transaction Fee
A24: Additional Costs per sale
A25: Agent Split % | B25: 1
A26: Agent Gross Commission | B26: =(B22*B25)-B23-B24 -> 6600
A29: Number of closed sides required to reach your goal | B29: =B19/B26 -> 15.15151515
